bitfinex/quotes_BTCUSD_20251201
["timestamp","ask_amount","ask_price","bid_price","bid_amount"]
[1764623026167,0.24484321,85770.0,85767.0,0.26364693]
[1764623026371,0.01165895,85771.0,85768.0,0.23318676]
[1764623026575,0.23318228,85770.0,85767.0,0.26364934]
[1764623026829,0.2448406,85771.0,85768.0,0.23318632]
[1764623027037,0.23318282,85770.0,85767.0,0.26364934]
[1764623027246,0.23318282,85770.0,85760.0,0.01166044]
[1764623027247,0.0116599,85764.0,85760.0,0.01166044]
[1764623027477,0.0116599,85764.0,85737.0,1.48934427]
[1764623027478,0.01166017,85762.0,85757.0,0.01166085]
[1764623027697,0.24486674,85761.0,85758.0,0.24487465]
[1764623027948,0.25318316,85770.0,85764.0,0.0116599]
[1764623027949,0.01999998,85770.0,85764.0,0.0116599]
[1764623028140,0.01999998,85780.0,85771.0,0.01165895]
[1764623028347,0.01999998,85780.0,85773.0,0.27981784]
[1764623030522,0.01999998,85780.0,85773.0,0.2331736]
[1764623031511,0.0316577,85780.0,85773.0,0.2331736]
[1764623031718,0.01999998,85780.0,85773.0,0.2331736]
[1764623031947,0.00999999,85780.0,85773.0,0.2331736]
[1764623032153,0.00999999,85790.0,85773.0,0.2331736]
[1764623033119,0.01165514,85799.0,85773.0,0.2331736]
[1764623033240,0.00999999,85790.0,85773.0,0.29569659]
[1764623033441,0.01999998,85790.0,85773.0,0.29569659]
[1764623033940,0.00999999,85790.0,85773.0,0.29569659]
[1764623034181,0.01999998,85790.0,85773.0,0.29569659]
[1764623034355,0.01999998,85790.0,85773.0,0.29669659]
[1764623034756,0.01999998,85790.0,85773.0,0.29569659]
[1764623035095,0.00999999,85780.0,85773.0,0.2351736]
[1764623035298,0.00999999,85780.0,85773.0,0.2539336]
[1764623035456,0.01999998,85790.0,85773.0,0.2539336]
[1764623035659,0.00999999,85790.0,85773.0,0.31645659]
[1764623036246,0.01999998,85790.0,85773.0,0.31645659]
[1764623036878,0.01999998,85790.0,85773.0,0.2351736]
[1764623037104,0.23313277,85789.0,85773.0,0.2539336]
[1764623037525,0.00999999,85780.0,85773.0,0.27981784]
[1764623037728,0.01999998,85780.0,85773.0,0.29957784]
[1764623038368,0.01999998,85780.0,85773.0,0.29857784]
[1764623038567,0.01999998,85780.0,85773.0,0.29957784]
[1764623038968,0.01999998,85780.0,85773.0,0.29857784]
[1764623040392,0.0316577,85780.0,85773.0,0.29957784]
[1764623041508,0.23328691,85774.0,85773.0,0.001]
[1764623041725,0.28542867,85774.0,85773.0,0.001]
[1764623041870,0.23328691,85774.0,85773.0,0.001]
[1764623042706,0.00011602,85774.0,85773.0,0.001]
[1764623042909,0.23328691,85774.0,85773.0,0.001]
[1764623043069,0.00011602,85774.0,85773.0,0.001]
[1764623043278,0.00011602,85774.0,85773.0,0.2331736]
[1764623043483,0.00011602,85774.0,85773.0,0.2341736]
[1764623043894,0.00011602,85774.0,85773.0,0.001]
[1764623044098,0.00011602,85774.0,85773.0,0.2341736]
[1764623044734,0.00011602,85774.0,85773.0,0.001]
[1764623045297,0.23328691,85774.0,85773.0,0.001]
[1764623045874,0.00011602,85774.0,85773.0,0.2341736]
[1764623046071,0.00011602,85774.0,85773.0,0.001]
[1764623046292,0.83051553,85790.0,85773.0,0.2341736]
[1764623046490,0.23316458,85777.0,85773.0,0.2331736]
[1764623046694,0.23316458,85777.0,85772.0,0.01165881]
[1764623046695,0.01166003,85763.0,85755.0,0.01166112]
[1764623046914,0.01166044,85760.0,85750.0,0.0116618]
[1764623047052,0.01166085,85757.0,85755.0,0.01876]
[1764623047255,0.24487814,85757.0,85755.0,0.01876]
[1764623047490,0.24487814,85757.0,85749.0,0.01166194]
[1764623047491,0.01166167,85751.0,85749.0,0.01872]
[1764623047820,0.59738541,85770.0,85749.0,0.01872]
[1764623047821,0.0116599,85764.0,85756.0,0.01166099]
[1764623047986,0.01166031,85761.0,85756.0,0.01166099]
[1764623048157,0.24486415,85762.0,85757.0,0.24487735]
[1764623048567,0.01166017,85762.0,85749.0,0.01883602]
[1764623048767,0.01166017,85762.0,85754.0,0.23322485]
[1764623048768,0.01166085,85757.0,85754.0,0.23322485]
[1764623048967,0.01166031,85761.0,85755.0,0.01166112]
[1764623049251,0.244857,85765.0,85760.0,0.23320895]
[1764623049389,0.244857,85765.0,85762.0,0.23320309]
[1764623049725,0.244857,85765.0,85761.0,0.24486393]
[1764623049923,0.23320621,85762.0,85758.0,0.2448725]
[1764623050154,0.23320621,85762.0,85759.0,0.23321069]
[1764623050586,0.24486638,85762.0,85759.0,0.23321069]
[1764623051806,0.01166031,85761.0,85758.0,0.01166071]
[1764623052031,0.23321003,85760.0,85758.0,0.24487463]
[1764623052204,0.0116599,85764.0,85758.0,0.24487463]
[1764623052418,0.0116599,85764.0,85759.0,0.01166058]
[1764623052613,0.23320129,85763.0,85760.0,0.2332065]
[1764623052976,0.24486058,85764.0,85760.0,0.2332065]
[1764623053330,0.23318178,85770.0,85761.0,0.01166031]
[1764623053536,0.2448549,85766.0,85761.0,0.24485874]
[1764623053892,0.01165963,85766.0,85763.0,0.23320032]
[1764623054112,0.323,85773.0,85750.0,0.59738541]
[1764623054317,0.01165609,85792.0,85785.0,0.01165704]
[1764623054530,0.01165664,85788.0,85783.0,0.01165732]
[1764623054751,0.2331354,85788.0,85782.0,0.24480403]
[1764623055161,0.23313555,85787.0,85783.0,0.2331445]
[1764623055483,0.23313555,85787.0,85784.0,0.24480068]
[1764623055484,0.00038687,85787.0,85784.0,0.24480068]
[1764623055680,0.00038687,85787.0,85782.0,0.01165745]
[1764623055918,0.00038687,85787.0,85784.0,0.01165718]
[1764623056131,0.00038687,85787.0,85786.0,0.23313827]
[1764623059016,0.00038687,85787.0,85786.0,0.23413827]
[1764623059349,0.00038687,85787.0,85786.0,0.23313827]
[1764623059891,0.00038687,85787.0,85786.0,0.23413827]
[1764623060840,0.00038687,85787.0,85786.0,0.001]
[1764623061045,0.00038687,85787.0,85786.0,0.23413827]
[1764623061945,0.00038687,85787.0,85786.0,0.23313827]
[1764623062495,0.00038687,85787.0,85786.0,0.23413827]
[1764623062863,0.00038687,85787.0,85784.0,0.01165718]
[1764623063063,0.00038687,85787.0,85784.0,0.24480039]
[1764623063260,0.00038687,85787.0,85786.0,0.001]
[1764623063648,0.00038687,85787.0,85785.0,0.23314085]
[1764623063849,0.00038687,85787.0,85786.0,0.23313827]
[1764623064275,0.00038687,85787.0,85785.0,0.23314085]
[1764623064712,0.00038687,85787.0,85784.0,0.24580039]
[1764623065077,0.00038687,85787.0,85785.0,0.23313946]
[1764623065483,0.00038687,85787.0,85786.0,0.23313827]
[1764623066581,0.00038687,85787.0,85786.0,0.23413827]
[1764623069080,0.00038687,85787.0,85786.0,0.23313827]
[1764623069507,0.00038687,85787.0,85786.0,0.23413827]
[1764623070895,0.23352242,85787.0,85786.0,0.001]
[1764623071177,0.60316666,85787.0,85786.0,0.001]
[1764623071356,0.71839262,85787.0,85786.0,0.001]
[1764623071801,0.74715132,85787.0,85786.0,0.001]
[1764623072522,0.63192536,85787.0,85786.0,0.001]
[1764623072740,0.24485475,85766.0,85763.0,0.01166003]
[1764623073761,0.23319561,85765.0,85763.0,0.01166003]
[1764623073957,0.01165895,85771.0,85766.0,0.01165963]
[1764623074302,0.01165963,85766.0,85762.0,0.01166017]
[1764623074483,0.01165963,85766.0,85764.0,0.23319744]
[1764623074630,0.01165963,85766.0,85763.0,0.23319823]
[1764623074851,0.23320895,85760.0,85753.0,0.03034139]
[1764623075056,0.23319838,85764.0,85759.0,0.23321113]
[1764623075409,0.24486118,85763.0,85758.0,0.24487316]
[1764623075541,0.01166003,85763.0,85758.0,0.01166071]
[1764623075853,0.24486383,85762.0,85758.0,0.01166071]
[1764623076041,0.24486383,85762.0,85758.0,0.01177673]
[1764623076242,0.24486383,85762.0,85759.0,0.001]
[1764623076900,0.23320656,85761.0,85759.0,0.001]
[1764623077265,0.24486383,85762.0,85759.0,0.001]
[1764623077266,0.01165922,85769.0,85761.0,0.01166031]
[1764623077580,0.01165976,85765.0,85762.0,0.01166017]
[1764623078099,0.01165922,85769.0,85765.0,0.24485509]
[1764623078100,0.23318503,85769.0,85765.0,0.24485509]
[1764623078314,0.01165908,85770.0,85766.0,0.01165963]
[1764623078459,0.24484102,85770.0,85766.0,0.24485182]
[1764623078660,0.24484102,85770.0,85765.0,0.24485509]
[1764623078661,0.24484416,85769.0,85765.0,0.24485509]
[1764623079098,0.24484798,85768.0,85763.0,0.24485999]
[1764623079319,0.24484798,85768.0,85764.0,0.24485608]
[1764623079523,0.24484798,85768.0,85765.0,0.23319498]
[1764623079723,0.23319019,85767.0,85764.0,0.0116599]
[1764623079865,0.23319019,85767.0,85764.0,0.24485777]
[1764623080068,0.23319019,85767.0,85764.0,0.26353777]
[1764623080308,0.23319264,85766.0,85764.0,0.01868]
[1764623080470,0.24484968,85767.0,85764.0,0.01868]
[1764623080672,0.23319363,85766.0,85764.0,0.01868]
[1764623081393,0.23319304,85766.0,85764.0,0.01868]
[1764623081597,0.23319535,85765.0,85764.0,0.01868]
[1764623082045,0.24483516,85772.0,85767.0,0.01165949]
[1764623082256,0.23318526,85769.0,85766.0,0.01165963]
[1764623082497,0.23319535,85765.0,85764.0,0.01868]
[1764623084288,0.01166017,85762.0,85758.0,0.00011602]
[1764623084461,0.01166017,85762.0,85759.0,0.01868]
[1764623084902,0.01166017,85762.0,85759.0,0.25188995]
[1764623085108,0.01166017,85762.0,85759.0,0.26355053]
[1764623085353,0.01166017,85762.0,85760.0,0.23320891]
[1764623085471,0.23320594,85763.0,85760.0,0.23320891]
[1764623085674,0.11667057,85840.0,85759.0,0.01868]
[1764623085675,0.24483571,85772.0,85759.0,0.01868]
[1764623085874,0.01165922,85769.0,85763.0,0.01166003]
[1764623086092,0.23319311,85766.0,85763.0,0.24486064]
[1764623086292,0.23319226,85767.0,85763.0,0.24485824]
[1764623087014,0.23319226,85767.0,85762.0,0.23320117]
[1764623087015,0.23319592,85765.0,85761.0,0.24486636]
[1764623087403,0.23319592,85765.0,85762.0,0.23320344]
[1764623087949,0.24485568,85765.0,85762.0,0.23320344]
[1764623088273,0.01165732,85783.0,85770.0,0.01165908]
[1764623088545,0.24482168,85777.0,85774.0,0.23317069]
[1764623088705,0.01165813,85777.0,85774.0,0.01165854]
[1764623088906,0.01165813,85777.0,85774.0,0.24482943]
[1764623089110,0.2448234,85777.0,85773.0,0.24483088]
[1764623089441,0.2448234,85777.0,85771.0,0.05830319]
[1764623089442,0.0116584,85775.0,85771.0,0.05830319]
[1764623089644,0.0116584,85775.0,85772.0,0.01165881]
[1764623090151,0.01165813,85777.0,85773.0,0.01165868]
[1764623090152,0.24482146,85777.0,85773.0,0.01165868]
[1764623090381,0.23316879,85775.0,85768.0,0.24484421]
[1764623090622,0.23316879,85775.0,85771.0,0.01165895]
[1764623090851,0.23317215,85774.0,85771.0,0.01165895]
[1764623091060,0.01165827,85776.0,85772.0,0.01165881]
[1764623091280,0.24482313,85777.0,85774.0,0.23316902]
[1764623091483,0.23316545,85776.0,85773.0,0.24483217]
[1764623092089,0.01165786,85779.0,85775.0,0.0116584]
[1764623092321,0.24481546,85779.0,85775.0,0.24482391]
[1764623092492,0.24481546,85779.0,85776.0,0.23316539]
[1764623093134,0.24481546,85779.0,85775.0,0.24482391]
[1764623093135,0.23316047,85778.0,85775.0,0.24482391]
[1764623093559,0.01165637,85790.0,85785.0,0.01165704]
[1764623093775,0.01165704,85785.0,85783.0,0.23314558]
[1764623094224,0.01165691,85786.0,85783.0,0.2448029]
[1764623094445,0.0116565,85789.0,85784.0,0.01165718]
[1764623094446,0.323,85789.0,85784.0,0.01165718]
[1764623094666,0.56778673,85789.0,85785.0,0.01165704]
[1764623094883,0.5681736,85789.0,85785.0,0.01165704]
[1764623095352,0.32338687,85789.0,85786.0,0.01165691]
[1764623095561,0.01165664,85788.0,85785.0,0.01165704]
[1764623096198,0.32338687,85789.0,85786.0,0.01165691]
[1764623096764,0.32338687,85789.0,85787.0,0.23313555]
[1764623097344,0.00038687,85789.0,85788.0,0.23313283]
[1764623097806,0.00038687,85789.0,85787.0,0.23313555]
[1764623097807,0.2335174,85789.0,85787.0,0.23313555]
[1764623098011,0.23351715,85789.0,85787.0,0.23313555]
[1764623098307,0.00038687,85789.0,85787.0,0.23313555]
[1764623098511,0.00038687,85789.0,85788.0,0.23313283]
[1764623100444,0.00255057,85801.0,85800.0,0.61862322]
[1764623100645,0.00266656,85801.0,85800.0,0.63730322]
[1764623101083,0.00266656,85801.0,85800.0,0.68394746]
[1764623101678,0.04664424,85841.0,85807.0,0.01165406]
[1764623101883,0.04664424,85841.0,85817.0,0.24470664]
[1764623101884,0.01165148,85826.0,85817.0,0.24470664]
[1764623102175,0.01165243,85819.0,85815.0,0.01165297]
[1764623102318,0.01165215,85821.0,85816.0,0.01165283]
[1764623102546,0.24469932,85820.0,85817.0,0.0116527]
[1764623102744,0.01165229,85820.0,85814.0,0.04664424]
[1764623102981,0.01165202,85822.0,85814.0,0.04664424]
[1764623103159,0.2446982,85820.0,85817.0,0.23305247]
[1764623103363,0.2446982,85820.0,85816.0,0.01265283]
[1764623103544,0.01165202,85822.0,85816.0,0.24570916]
[1764623103545,0.00054691,85818.0,85816.0,0.24570916]
[1764623103740,0.01165202,85822.0,85818.0,0.01165256]
[1764623104245,0.24469666,85821.0,85817.0,0.0126527]
[1764623104445,0.23304995,85819.0,85817.0,0.001]
[1764623105379,0.24470101,85822.0,85788.0,0.01165664]
[1764623105380,0.01165528,85798.0,85788.0,0.01165664]
[1764623105583,0.23305405,85817.0,85760.0,0.4]
[1764623105584,0.01165609,85792.0,85772.0,0.01165881]
[1764623105785,0.323,85809.0,85760.0,0.4]
[1764623105786,0.01165582,85794.0,85790.0,0.23312664]
[1764623105991,0.01165582,85794.0,85790.0,0.24478301]
[1764623106247,0.01165501,85800.0,85792.0,0.01165609]
[1764623106471,0.01165541,85797.0,85793.0,0.01165596]
[1764623106614,5.856e-05,85800.0,85797.0,0.01165541]
[1764623106958,5.856e-05,85800.0,85799.0,0.04664424]
[1764623107315,5.856e-05,85800.0,85799.0,0.43216723]
[1764623108706,5.856e-05,85800.0,85799.0,0.43919019]
[1764623109118,5.856e-05,85800.0,85799.0,0.42051019]
[1764623109342,5.856e-05,85800.0,85799.0,0.44019019]
[1764623109742,5.856e-05,85800.0,85799.0,0.43919019]
[1764623110117,5.856e-05,85800.0,85799.0,0.44119019]
[1764623111528,5.856e-05,85800.0,85799.0,0.42953315]
[1764623112583,5.856e-05,85800.0,85799.0,0.34833016]
[1764623112796,5.856e-05,85800.0,85799.0,0.36501016]
[1764623112989,5.856e-05,85800.0,85799.0,0.36701016]
[1764623113572,5.856e-05,85800.0,85799.0,0.02533016]
[1764623114734,5.856e-05,85800.0,85799.0,0.002]
[1764623114930,5.856e-05,85800.0,85798.0,0.29842742]
[1764623115142,5.856e-05,85800.0,85799.0,0.001]
[1764623115293,5.856e-05,85800.0,85799.0,0.23410294]
[1764623115630,5.856e-05,85800.0,85799.0,0.23310294]
[1764623116737,5.856e-05,85800.0,85799.0,0.23410294]
[1764623120471,5.856e-05,85800.0,85799.0,0.001]
[1764623120898,0.23315879,85800.0,85799.0,0.001]
[1764623122497,0.23315879,85800.0,85792.0,0.26345772]
[1764623122498,0.24477168,85795.0,85792.0,0.03033609]
[1764623122820,0.01165569,85795.0,85792.0,0.26345789]
[1764623123037,0.23310843,85797.0,85793.0,0.24477283]
[1764623123274,0.24476356,85798.0,85794.0,0.24477213]
[1764623123513,0.24476356,85798.0,85795.0,0.24476688]
[1764623123731,0.23310838,85797.0,85794.0,0.01165582]
[1764623123945,0.23311177,85796.0,85793.0,0.01165596]
[1764623124192,0.24476379,85797.0,85793.0,0.24477371]
[1764623124402,0.23311218,85796.0,85793.0,0.24477474]
[1764623125013,0.01165541,85797.0,85794.0,0.24477171]
[1764623125438,0.01165541,85797.0,85793.0,0.001]
[1764623125645,0.24477235,85794.0,85793.0,0.001]
[1764623126051,0.23313194,85789.0,85787.0,0.01868]
[1764623126253,0.23313283,85788.0,85787.0,0.01868]
[1764623126669,0.01165827,85776.0,85770.0,0.01165908]
[1764623126875,0.2448164,85779.0,85775.0,0.24482426]
[1764623127283,0.2448164,85779.0,85776.0,0.23316537]
[1764623127979,0.24481815,85778.0,85774.0,0.01165854]
[1764623128100,0.23316289,85777.0,85774.0,0.24482696]
[1764623128317,0.23315318,85781.0,85774.0,0.24482696]
[1764623128318,0.24481077,85781.0,85775.0,0.0116584]
[1764623128573,0.23315754,85779.0,85776.0,0.24482372]
[1764623128951,0.24481358,85780.0,85777.0,0.23316138]
[1764623129157,0.31942147,85780.0,85777.0,0.24481951]
[1764623129539,0.08626561,85780.0,85778.0,0.23315975]
[1764623129741,0.01165759,85781.0,85778.0,0.24481775]
[1764623129942,0.23315647,85780.0,85777.0,0.01165813]
[1764623130571,0.23315975,85779.0,85776.0,0.24582201]
[1764623130771,0.23315975,85779.0,85776.0,0.001]
[1764623130772,0.23316273,85777.0,85776.0,0.001]
[1764623131040,0.24481761,85779.0,85775.0,0.23316783]
[1764623131041,0.23316041,85778.0,85775.0,0.23316783]
[1764623131156,0.01165868,85773.0,85763.0,0.01166003]
[1764623131378,0.2448303,85774.0,85770.0,0.01165908]
[1764623131586,0.01165868,85773.0,85763.0,0.01166003]
[1764623131828,0.01165908,85770.0,85762.0,0.01166017]
[1764623131986,0.01165963,85766.0,85762.0,0.2448634]
[1764623132187,0.24485469,85766.0,85762.0,0.24486101]
[1764623132384,5.853e-05,85766.0,85764.0,0.23319698]
[1764623132771,5.853e-05,85766.0,85765.0,0.23319535]
[1764623133505,5.853e-05,85766.0,85764.0,0.23319556]
[1764623134532,5.853e-05,85766.0,85765.0,0.23319535]
[1764623135413,5.853e-05,85766.0,85765.0,0.23419535]
[1764623135821,0.23317904,85771.0,85767.0,0.23318813]
[1764623135993,0.23318426,85770.0,85767.0,0.00038687]
[1764623136227,0.2331847,85769.0,85767.0,0.00038687]
[1764623137061,0.24484099,85770.0,85767.0,0.00038687]
[1764623137266,0.23318701,85769.0,85767.0,0.00038687]
[1764623137878,0.01165881,85772.0,85769.0,0.23318448]
[1764623139999,0.23316647,85776.0,85772.0,0.01165881]
[1764623140209,0.23316883,85775.0,85771.0,0.01165895]
[1764623140430,0.24482723,85775.0,85772.0,0.01165881]
[1764623140638,0.0116584,85775.0,85772.0,0.01165881]
[1764623140768,0.24482474,85776.0,85773.0,0.24482983]
[1764623140973,0.24482474,85776.0,85773.0,0.01165868]
[1764623141174,0.323,85779.0,85775.0,0.23316685]
[1764623141377,0.23316277,85777.0,85775.0,0.23316685]
[1764623141582,0.23316277,85777.0,85774.0,0.01165854]
[1764623141950,0.23316609,85776.0,85774.0,0.24482821]
[1764623142120,0.23316609,85776.0,85773.0,0.01165868]
[1764623142358,0.24482436,85776.0,85773.0,0.01165868]
[1764623142567,0.011658,85778.0,85773.0,0.01165868]
[1764623142751,0.23316531,85777.0,85774.0,0.24482875]
[1764623143059,0.24481841,85778.0,85775.0,0.23316614]
[1764623143606,0.01165745,85782.0,85777.0,0.01165813]
[1764623143819,0.01165596,85793.0,85784.0,0.01165718]
[1764623144026,0.24477576,85793.0,85789.0,0.24478564]
[1764623144232,0.01165541,85797.0,85793.0,0.23311912]
[1764623144441,0.01868,85803.0,85793.0,0.23311912]
[1764623144442,0.23308427,85806.0,85798.0,0.24476036]
[1764623144654,0.01191118,85809.0,85803.0,0.23309058]
[1764623144859,0.0002574,85809.0,85805.0,0.01165433]
[1764623145061,0.23333407,85809.0,85806.0,0.23308376]
[1764623145262,0.24473815,85806.0,85802.0,0.01165473]
[1764623145481,0.01165419,85806.0,85804.0,0.23308917]
[1764623145692,0.01191118,85809.0,85804.0,0.24474363]
[1764623145895,0.24498789,85809.0,85806.0,0.2330832]
[1764623146145,0.323,85808.0,85805.0,0.23308664]
[1764623146345,0.55607964,85808.0,85805.0,0.23308664]
[1764623146707,0.55607964,85808.0,85806.0,0.23308344]
[1764623146708,0.323,85808.0,85806.0,0.23308344]
[1764623147245,0.0002574,85809.0,85808.0,0.2330785]
[1764623147410,0.0002574,85809.0,85807.0,0.23308121]
[1764623148032,0.0002574,85809.0,85806.0,0.24473791]
[1764623148234,0.0002574,85809.0,85807.0,0.23308019]
[1764623150492,0.0002574,85809.0,85808.0,0.2330785]
[1764623151395,0.0002574,85809.0,85808.0,0.27972274]
[1764623153483,0.0002574,85809.0,85808.0,0.28072274]
[1764623158659,0.0002574,85809.0,85808.0,0.2340785]
[1764623158958,0.0002574,85809.0,85808.0,0.2527585]
[1764623164518,1e-08,85809.0,85808.0,0.63828149]
[1764623164895,1e-08,85809.0,85808.0,1.03828149]
[1764623165098,0.323,85854.0,85850.0,0.24461035]
[1764623165326,0.55607222,85854.0,85850.0,0.24461035]
[1764623165506,0.32311609,85854.0,85850.0,0.24461006]
[1764623165748,0.32311609,85854.0,85852.0,0.23295904]
[1764623165749,0.00011609,85854.0,85852.0,0.23295904]
[1764623166092,0.00011609,85854.0,85853.0,0.23295633]
[1764623166501,0.00011609,85854.0,85851.0,0.01164808]
[1764623166901,0.00011609,85854.0,85851.0,0.24460954]
[1764623167122,0.00011609,85854.0,85853.0,0.23295633]
[1764623176306,0.00156311,85854.0,85853.0,0.23295633]
[1764623177174,0.00156311,85854.0,85853.0,0.23395633]
[1764623181272,0.00156311,85854.0,85853.0,0.25259633]
[1764623183093,0.011647,85859.0,85853.0,0.001]
[1764623183311,0.01164686,85860.0,85853.0,0.01264781]
[1764623183516,0.24458313,85861.0,85857.0,0.01164727]
[1764623183715,0.24458497,85860.0,85856.0,0.24459462]
[1764623183888,0.24458497,85860.0,85857.0,0.24459253]
[1764623184234,0.01164686,85860.0,85858.0,0.23294176]
[1764623185090,0.24457794,85863.0,85859.0,0.011647]
[1764623185382,0.24457402,85864.0,85861.0,0.01164673]
[1764623185541,0.33464618,85865.0,85861.0,0.01164673]
[1764623185745,0.23292703,85864.0,85862.0,0.23293191]
[1764623185952,0.23290009,85874.0,85862.0,0.23293191]
[1764623185953,0.01164483,85875.0,85865.0,0.01164618]
[1764623186138,0.01164578,85868.0,85863.0,0.24457554]
[1764623186338,0.01164578,85868.0,85863.0,0.24457507]
[1764623186339,0.24821214,85867.0,85863.0,0.24457507]
[1764623186610,0.00038645,85875.0,85863.0,0.24457507]
[1764623186611,0.00038645,85875.0,85874.0,0.23289936]
[1764623187649,0.00038645,85875.0,85872.0,0.01164523]
[1764623187894,0.00038645,85875.0,85873.0,0.23290091]
[1764623188090,0.00038645,85875.0,85874.0,0.23289936]
[1764623188291,0.00038645,85875.0,85873.0,0.23290091]
[1764623188703,0.00038645,85875.0,85874.0,0.23289936]
[1764623191918,0.05088087,85875.0,85848.0,0.39609854]
[1764623192119,0.2445559,85870.0,85865.0,0.01164618]
[1764623192325,0.23290647,85872.0,85866.0,0.01164605]
[1764623192546,0.23290647,85872.0,85865.0,0.01164618]
[1764623192547,0.01164551,85870.0,85865.0,0.24456453]
[1764623192817,0.00041785,85867.0,85866.0,0.23292106]
[1764623197660,0.00041785,85867.0,85866.0,0.25156106]
[1764623197958,0.00041785,85867.0,85866.0,0.25256106]
[1764623198167,0.00041785,85867.0,85866.0,0.25156106]
[1764623199557,0.00041785,85867.0,85866.0,0.25256106]
[1764623201947,0.00041785,85867.0,85866.0,0.23392106]
[1764623202143,0.00041785,85867.0,85866.0,0.25256106]
[1764623206094,0.00041785,85867.0,85866.0,0.23392106]
[1764623206295,0.00041785,85867.0,85866.0,0.25256106]
[1764623211267,0.00041785,85867.0,85866.0,0.23392106]
[1764623211492,0.00041785,85867.0,85866.0,0.25256106]
[1764623213950,0.00041785,85867.0,85866.0,0.63808405]
[1764623214171,0.00038645,85875.0,85874.0,0.61842235]
[1764623214525,0.00038645,85875.0,85874.0,0.66506659]
[1764623215461,0.00038645,85875.0,85874.0,0.68470659]
[1764623216022,0.00038645,85875.0,85874.0,0.68370659]
[1764623216241,0.00038645,85875.0,85874.0,0.68570659]
[1764623216821,0.00038645,85875.0,85874.0,0.68370659]
[1764623217778,1e-08,85875.0,85874.0,0.68370659]
[1764623218068,0.2327694,85922.0,85874.0,0.68370659]
[1764623218069,0.00466635,85922.0,85889.0,0.61838167]
[1764623218271,0.00031589,85890.0,85889.0,0.68366591]
[1764623219766,0.00031589,85890.0,85889.0,0.68466591]
[1764623220998,4.008e-05,85930.0,85927.0,0.01163778]
[1764623221313,0.00015595,85930.0,85929.0,0.23275029]
[1764623221521,0.00015595,85930.0,85927.0,0.24439146]
[1764623221719,0.00015595,85930.0,85928.0,0.23275269]
[1764623222020,0.00015595,85930.0,85929.0,0.04664424]
[1764623222194,0.00015595,85930.0,85927.0,0.01864]
[1764623222392,0.00015595,85930.0,85927.0,0.23275394]
[1764623222596,0.00015595,85930.0,85927.0,0.01163778]
[1764623222785,0.23275102,85929.0,85924.0,0.01163819]
[1764623222961,0.23275102,85929.0,85922.0,0.01864]
[1764623222962,0.01163792,85926.0,85922.0,0.01864]
[1764623223195,0.24441101,85921.0,85910.0,0.01164008]
[1764623223519,0.24441179,85921.0,85913.0,0.01163968]
[1764623223699,0.01164008,85910.0,85902.0,0.01164117]
[1764623223906,0.01164008,85910.0,85899.0,0.01864]
[1764623223907,0.01164035,85908.0,85899.0,0.01864]
[1764623224101,0.01164171,85898.0,85892.0,0.01164252]
[1764623224302,0.23282887,85900.0,85895.0,0.24448335]
[1764623224504,0.0116413,85901.0,85897.0,0.01164185]
[1764623224954,0.24446567,85902.0,85898.0,0.24447576]
[1764623225173,0.01164117,85902.0,85899.0,0.001]
[1764623225286,0.23281249,85907.0,85902.0,0.01164117]
[1764623225287,0.23281587,85905.0,85902.0,0.01164117]
[1764623225484,0.01163981,85912.0,85904.0,0.0116409]
[1764623225698,0.244437,85912.0,85908.0,0.24444707]
[1764623225915,0.01164035,85908.0,85902.0,0.01864]
[1764623226126,0.01164117,85902.0,85898.0,0.01164171]
[1764623226332,0.01164076,85905.0,85898.0,0.01164171]
[1764623226549,0.24446503,85902.0,85898.0,0.03028171]
[1764623226749,0.23282915,85900.0,85897.0,0.24547726]
[1764623227018,0.23282915,85900.0,85897.0,0.24447726]
[1764623227227,0.23282915,85900.0,85893.0,0.01164239]
[1764623227228,0.01164157,85899.0,85893.0,0.01164239]
[1764623227432,0.01164157,85899.0,85894.0,0.01164225]
[1764623227640,0.24444202,85910.0,85900.0,0.01164144]
[1764623227842,0.3346413,85921.0,85909.0,0.24444414]
[1764623227843,0.23278987,85915.0,85909.0,0.24444414]
[1764623228000,0.01163995,85911.0,85904.0,0.0116409]
[1764623228389,0.23280502,85909.0,85906.0,0.24445248]
[1764623228593,0.24444524,85909.0,85906.0,0.01164063]
[1764623228795,0.23280786,85908.0,85906.0,0.01164063]
[1764623229034,0.2328101,85907.0,85904.0,0.0116409]
[1764623229247,0.0116409,85904.0,85902.0,0.01864]
[1764623229411,0.01163941,85915.0,85907.0,0.2444503]
[1764623229606,0.01163954,85914.0,85908.0,0.23280711]
[1764623229808,0.01163778,85927.0,85912.0,0.23279634]
[1764623230149,0.01163765,85928.0,85912.0,0.25143634]
[1764623230451,0.33463765,85928.0,85912.0,0.25143634]
[1764623230612,0.323,85928.0,85912.0,0.25143634]
[1764623230960,0.01163832,85923.0,85912.0,0.25143634]
[1764623231161,0.24440594,85923.0,85912.0,0.25143634]
[1764623231482,0.01163886,85919.0,85912.0,0.23279634]
[1764623231686,0.01163832,85923.0,85912.0,0.23279634]
[1764623231838,0.01313471,85913.0,85912.0,0.23279634]
[1764623236729,0.01164035,85908.0,85905.0,0.0186]
[1764623236939,0.01164049,85907.0,85904.0,0.0116409]
[1764623237138,0.24444146,85911.0,85906.0,0.01164063]
[1764623237301,0.01164022,85909.0,85905.0,0.01164076]
[1764623237503,0.01163995,85911.0,85906.0,0.23281171]
[1764623237699,0.23280192,85910.0,85907.0,0.01164049]
[1764623237907,0.244442,85910.0,85907.0,0.24444779]
[1764623238108,0.2328045,85909.0,85907.0,0.24444779]
[1764623238314,0.244442,85910.0,85907.0,0.23280938]
[1764623238513,0.01164008,85910.0,85907.0,0.24445038]
[1764623238728,0.24443937,85911.0,85907.0,0.24445038]
[1764623238889,0.25609287,85913.0,85908.0,0.01164035]
[1764623239095,0.01164049,85907.0,85905.0,0.23281407]
[1764623239334,0.24444803,85908.0,85905.0,0.23281407]
[1764623239534,0.23281082,85907.0,85904.0,0.001]
[1764623239753,0.24445114,85907.0,85903.0,0.24446136]
[1764623239967,0.23281378,85906.0,85903.0,0.24446136]
[1764623240170,0.23281378,85906.0,85905.0,0.001]
[1764623240368,0.05005439,85908.0,85907.0,0.23280989]
[1764623240618,0.24444485,85909.0,85906.0,0.2444532]
[1764623241016,0.24444485,85909.0,85903.0,0.001]
[1764623241017,0.24445892,85904.0,85903.0,0.001]
[1764623241178,0.01164063,85906.0,85903.0,0.001]
[1764623241179,0.24445455,85906.0,85903.0,0.001]
[1764623241382,0.23281613,85905.0,85903.0,0.001]
[1764623242310,0.00125291,85906.0,85905.0,0.23281531]
[1764623242466,0.02455058,85906.0,85900.0,0.01164144]
[1764623242798,0.0116409,85904.0,85901.0,0.2328251]
[1764623243121,0.0116409,85904.0,85901.0,0.24446667]
[1764623243337,0.23282161,85903.0,85901.0,0.24446667]
[1764623243465,0.01165704,85906.0,85901.0,0.0116413]
[1764623243850,0.2328157,85905.0,85903.0,0.001]
[1764623244019,0.02329767,85906.0,85903.0,0.23382039]
[1764623244223,0.25611285,85906.0,85904.0,0.23281785]